bitfinex/quotes_ETHUSD_20241018
["timestamp","ask_amount","ask_price","bid_price","bid_amount"]
[1729283383580,0.78846357,2643.9,2643.6,0.7876]
[1729283384668,0.78846357,2643.9,2643.6,1.07063125]
[1729283384873,0.78846357,2643.9,2643.6,0.7876]
[1729283385873,0.78846357,2643.9,2643.6,1.07063125]
[1729283386177,0.78846357,2643.9,2643.6,0.7876]
[1729283387311,0.78846357,2643.9,2643.6,1.07063125]
[1729283387518,0.78846357,2643.8,2643.6,0.7876]
[1729283391514,0.78846357,2643.8,2643.7,0.283234]
[1729283391730,1.14071523,2643.8,2643.7,0.283234]
[1729283391913,1.14071528,2643.8,2643.6,0.7876]
[1729283392074,0.78846357,2643.8,2643.7,0.2832339]
[1729283392276,1.14071515,2643.8,2643.7,0.2832339]
[1729283394930,1.14071515,2643.8,2643.6,0.7876]
[1729283395092,0.78846357,2643.8,2643.6,0.7876]
[1729283395984,0.78846357,2643.8,2643.0,3.55]
[1729283396181,0.78846357,2643.7,2643.2,0.7756]
[1729283402702,0.78846357,2643.8,2643.2,0.7756]
[1729283402902,0.78846357,2643.9,2643.2,0.55]
[1729283403219,0.78846357,2643.9,2643.4,0.7534]
[1729283403907,0.78846357,2643.9,2643.5,0.55]
[1729283404138,1.1831079,2644.1,2643.6,0.7741]
[1729283404139,0.78846357,2644.0,2643.6,0.7741]
[1729283405097,0.78846357,2643.9,2643.6,0.7741]
[1729283405303,1.14097151,2643.8,2643.6,0.7741]
[1729283405529,1.14097151,2643.8,2642.7,3.60953381]
[1729283405530,1.14094043,2643.7,2642.8,0.822]
[1729283405736,0.78846357,2643.7,2642.8,0.822]
[1729283407146,0.78846357,2643.7,2643.0,0.7985]
[1729283408139,0.78846357,2643.7,2643.2,0.7985]
[1729283411242,3.57e-06,2643.7,2643.2,0.7985]
[1729283413146,1.1831079,2643.9,2643.2,0.7985]
[1729283413305,0.35237446,2643.8,2643.2,0.7985]
[1729283413506,1.1831079,2643.9,2643.2,0.7985]
[1729283413701,0.35237706,2643.8,2643.2,0.7985]
[1729283414008,0.35237967,2643.7,2643.2,0.7985]
[1729283414240,1.1831079,2643.8,2643.2,0.7985]
[1729283414445,1.1831079,2643.7,2643.2,0.7985]
[1729283414748,1.1831079,2643.8,2643.2,0.7985]
[1729283416142,1.1831079,2643.9,2643.2,0.7985]
[1729283417217,1.57763237,2644.0,2643.2,0.7985]
[1729283417218,1.1831079,2643.8,2643.2,0.7985]
[1729283417546,1.1831079,2643.7,2643.2,0.7985]
[1729283417905,1.1831079,2643.6,2643.0,0.7763]
[1729283418208,1.1831079,2643.6,2642.8,0.7763]
[1729283418209,3.32424896,2643.5,2642.8,0.7763]
[1729283418454,1.1831079,2643.4,2642.8,0.7763]
[1729283418816,1.1831079,2643.2,2642.7,0.60953381]
[1729283419123,1.1831079,2643.3,2642.7,0.60953381]
[1729283419314,1.1831079,2643.2,2642.7,0.60953381]
[1729283420132,1.1831079,2643.3,2642.7,0.60953381]
[1729283420459,0.27607403,2643.2,2642.7,0.60953381]
[1729283421131,1.06393691,2643.2,2642.7,0.60953381]
[1729283422506,0.27607403,2643.2,2642.7,0.60953381]
[1729283423447,0.78786288,2643.4,2642.8,0.8085]
[1729283423649,0.78786288,2643.6,2642.9,0.55]
[1729283423853,0.78786288,2643.7,2643.0,0.8065]
[1729283425450,0.78786288,2643.8,2643.3,3.0]
[1729283425748,1.1427232,2643.8,2643.0,0.8065]
[1729283425955,0.78786288,2643.8,2643.0,0.8065]
[1729283426188,0.78786288,2643.7,2643.0,0.88216387]
[1729283427315,0.78786288,2643.8,2643.0,0.8065]
[1729283427519,0.78786288,2643.7,2643.0,0.8065]
[1729283433558,0.78786288,2643.8,2643.0,0.8065]
[1729283433754,0.78786288,2643.7,2643.0,0.8065]
[1729283435158,0.78786288,2643.7,2643.0,0.85648067]
[1729283435364,0.78786288,2643.8,2643.0,0.85648067]
[1729283435586,0.78786288,2643.9,2643.0,0.85648067]
[1729283435802,0.78786288,2643.9,2643.3,0.55]
[1729283435953,0.78786288,2644.1,2643.4,0.783]
[1729283436459,0.78786288,2644.2,2643.4,0.8055]
[1729283436661,0.78786288,2644.2,2643.5,0.55]
[1729283436863,0.78786288,2644.2,2643.6,0.8055]
[1729283437067,0.78786288,2644.3,2643.6,0.8055]
[1729283439254,0.78786288,2644.4,2643.8,0.8055]
[1729283439455,0.78786288,2644.5,2643.8,0.8055]
[1729283442304,0.78786288,2644.6,2643.8,0.8055]
[1729283443994,0.78786288,2644.7,2644.0,0.8243]
[1729283446084,0.78786288,2644.8,2644.0,0.8243]
[1729283447392,0.78786288,2644.9,2644.0,0.8243]
[1729283447954,0.78786288,2644.8,2644.0,0.8243]
[1729283448195,1.1831079,2645.0,2644.0,0.8243]
[1729283448196,0.78786288,2644.9,2644.0,0.8243]
[1729283450696,0.78786288,2644.9,2644.1,0.8125]
[1729283450992,1.1427232,2644.9,2644.1,0.8125]
[1729283451883,0.78786288,2644.6,2643.9,0.7751]
[1729283452113,0.78786288,2644.5,2643.9,0.7751]
[1729283452397,0.78786288,2644.4,2643.9,0.7751]
[1729283452758,0.19709708,2644.3,2643.9,0.7751]
[1729283453353,0.78786288,2644.5,2643.9,0.7751]
[1729283455169,0.78786288,2644.4,2643.9,0.7751]
[1729283455500,0.78786288,2644.5,2643.9,0.7751]
[1729283456078,0.78786288,2644.4,2643.9,0.7751]
[1729283456286,0.78786288,2644.5,2643.9,0.7751]
[1729283456560,0.19709708,2644.4,2643.9,0.7751]
[1729283462859,0.98495996,2644.4,2643.1,0.55]
[1729283463062,0.78795996,2644.4,2643.3,0.55]
[1729283463275,0.78795996,2644.4,2643.4,0.785]
[1729283466400,0.78786288,2644.3,2643.4,0.785]
[1729283466601,9.6e-07,2644.4,2643.4,0.785]
[1729283467596,1.18310886,2644.4,2643.4,0.785]
[1729283468601,1.1831079,2644.2,2643.4,0.785]
[1729283470479,1.53414845,2644.1,2643.4,0.785]
[1729283470679,1.79465739,2644.3,2643.4,0.785]
[1729283470910,0.35105044,2644.2,2643.5,3.0]
[1729283471066,0.35105044,2644.1,2643.4,0.785]
[1729283471273,1.79465739,2644.3,2643.4,0.785]
[1729283471274,0.35105644,2644.0,2643.4,0.785]
[1729283471566,1.57763237,2644.2,2643.4,0.785]
[1729283471772,0.72704053,2644.1,2643.4,0.785]
[1729283471999,0.35106706,2644.0,2643.4,0.785]
[1729283476525,0.78657528,2643.9,2643.4,0.785]
[1729283476868,2.8e-07,2643.9,2643.4,0.785]
[1729283476991,0.37597347,2644.1,2643.4,0.785]
[1729283477195,0.3511901,2644.0,2643.4,0.785]
[1729283477735,0.37597347,2644.1,2643.4,0.785]
[1729283477941,0.35121231,2644.0,2643.4,0.785]
[1729283478098,1.57763237,2644.2,2643.4,0.785]
[1729283478299,0.35119392,2644.1,2643.4,0.785]
[1729283478620,0.35119392,2644.0,2643.4,0.785]
[1729283478823,1.57763237,2644.2,2643.4,0.785]
[1729283479044,0.35120786,2644.1,2643.4,0.785]
[1729283479343,0.35120786,2644.0,2643.4,0.785]
[1729283479494,1.95376861,2644.2,2643.4,0.785]
[1729283479695,1.53132308,2644.1,2643.4,0.785]
[1729283480010,1.53132308,2644.0,2643.4,0.785]
[1729283480325,0.35122221,2643.9,2643.4,0.785]
[1729283480498,1.72528044,2644.0,2643.4,0.785]
[1729283480707,0.35121589,2643.9,2643.4,0.785]
[1729283480944,1.72528044,2644.0,2643.4,0.785]
[1729283481237,0.35121351,2643.9,2643.4,0.785]
[1729283481458,1.72528044,2644.0,2643.4,0.785]
[1729283481610,0.33029128,2643.9,2643.4,0.785]
[1729283481808,1.86160548,2643.9,2643.4,0.785]
[1729283482119,1.51039215,2643.9,2643.4,0.785]
[1729283484414,1.18010087,2643.9,2643.4,0.785]
[1729283484810,1.72528044,2644.0,2643.4,0.785]
[1729283485051,0.35111822,2643.9,2643.4,0.785]
[1729283485225,1.72528044,2644.0,2643.4,0.785]
[1729283485428,0.35110531,2643.9,2643.4,0.785]
[1729283485613,1.72528044,2644.0,2643.4,0.785]
[1729283485837,0.35110106,2643.9,2643.4,0.785]
[1729283486057,1.72528044,2644.0,2643.4,0.785]
[1729283486249,0.35110547,2643.9,2643.4,0.785]
[1729283486466,1.18010087,2643.9,2643.4,0.785]
[1729283486615,0.33029128,2643.9,2643.4,0.785]
[1729283486949,0.78643859,2643.8,2643.4,0.785]
[1729283489713,0.78643859,2643.9,2643.4,0.785]
[1729283489955,0.78643859,2644.1,2643.5,0.7842]
[1729283490356,0.78643859,2644.2,2643.5,0.7842]
[1729283491026,0.78643859,2644.3,2643.5,0.7842]
[1729283491426,0.78643859,2644.2,2643.5,0.7842]
[1729283492736,0.78643859,2644.1,2643.5,0.7842]
[1729283493114,0.78643859,2644.0,2643.5,0.7842]
[1729283497379,0.78643859,2643.9,2643.5,0.7842]
[1729283510781,0.78643859,2644.0,2643.5,0.7842]
[1729283510981,1.18010087,2644.1,2643.5,0.7842]
[1729283510982,0.78643859,2644.1,2643.5,0.7842]
[1729283512610,0.78643859,2644.2,2643.6,0.55]
[1729283512778,0.78643859,2644.2,2643.7,0.782]
[1729283516215,1.14085577,2644.2,2643.7,0.782]
[1729283516419,0.78643859,2644.0,2643.7,0.782]
[1729283517114,1.1381094,2643.9,2643.1,0.8295]
[1729283517320,1.1381094,2643.8,2643.1,0.8295]
[1729283517616,1.1381094,2643.7,2643.1,0.8295]
[1729283517781,0.78643859,2643.7,2643.1,1.68659745]
[1729283517982,0.78643859,2643.7,2643.2,0.7968]
[1729283518389,0.78643859,2643.6,2643.2,0.7968]
[1729283518590,0.78643859,2643.7,2643.2,0.7968]
[1729283520839,0.78643859,2643.5,2643.2,0.7968]
[1729283520996,0.23182231,2643.4,2643.2,0.7968]
[1729283521394,0.78643859,2643.5,2643.2,0.7968]
[1729283521614,0.78643859,2643.6,2643.2,0.7968]
[1729283524336,0.78643859,2643.6,2643.0,0.7844]
[1729283524546,1.18010087,2643.7,2642.8,0.7844]
[1729283524547,0.78643859,2643.3,2642.8,0.7844]
[1729283524836,0.78643859,2643.1,2642.8,0.7844]
[1729283526899,0.78643859,2643.2,2642.8,0.7844]
[1729283527099,0.78643859,2643.1,2642.8,0.7844]
[1729283527524,0.78643859,2643.2,2642.8,0.7844]
[1729283528607,1.23224591,2643.3,2642.8,0.7844]
[1729283528805,1.02767327,2643.2,2642.8,0.7844]
[1729283529500,0.78643859,2643.3,2642.8,0.7844]
[1729283529845,0.78643859,2643.5,2642.8,0.7844]
[1729283529995,0.78643859,2643.6,2642.8,0.7844]
[1729283530196,0.78643859,2643.7,2642.8,0.7844]
[1729283530843,1.18010087,2643.8,2642.8,0.7844]
[1729283530844,0.78643859,2643.8,2642.8,0.7844]
[1729283531708,0.78643859,2643.8,2643.3,0.7554]
[1729283532329,0.78643859,2643.9,2643.3,0.7554]
[1729283535049,0.78643859,2644.0,2643.3,0.7554]
[1729283539027,0.78643859,2643.8,2642.8,0.8313]
[1729283539226,1.13750382,2643.7,2642.8,0.8313]
[1729283539410,1.13745503,2643.6,2642.8,0.8313]
[1729283539604,0.78643859,2643.5,2642.8,0.8313]
[1729283539930,0.78643859,2643.3,2642.3,0.8003]
[1729283540106,1.01819056,2643.3,2642.3,0.8003]
[1729283542524,0.23175197,2643.3,2642.3,0.8003]
[1729283542857,1.01819056,2643.3,2642.3,0.8003]
[1729283543615,0.23175197,2643.3,2642.3,0.8003]
[1729283544352,1.01819056,2643.3,2642.3,0.8003]
[1729283544525,0.23175197,2643.3,2642.5,0.7721]
[1729283547330,0.78643859,2643.4,2642.5,0.7721]
[1729283553042,0.78643859,2643.5,2642.5,0.7721]
[1729283554671,0.78643859,2643.6,2642.5,1.3032]
[1729283554870,0.78643859,2643.6,2642.5,0.55]
[1729283555077,0.78643859,2643.7,2642.7,0.55]
[1729283555259,0.19665395,2643.6,2642.8,0.7532]
[1729283556564,0.98309254,2643.6,2642.8,0.7532]
[1729283558241,0.78643859,2643.7,2642.8,0.7532]
[1729283558775,0.78643859,2643.8,2642.8,0.7532]
[1729283559340,0.78643859,2643.8,2642.9,0.7884]
[1729283559763,0.78643859,2643.7,2642.9,0.7884]
[1729283562477,0.78643859,2643.6,2642.9,0.7884]
[1729283565238,0.78643859,2643.7,2643.1,0.8272]
[1729283565667,0.78643859,2643.8,2643.1,0.8272]
[1729283567746,0.78643859,2643.7,2643.1,0.8272]
[1729283568082,0.78643859,2643.8,2643.1,0.8272]
[1729283568672,0.78643859,2643.7,2643.1,0.8272]
[1729283568883,0.78643859,2643.8,2643.1,0.8272]
[1729283569094,0.78643859,2643.6,2643.1,0.8272]
[1729283572485,0.78643859,2643.5,2643.1,0.8272]
[1729283573183,0.78643859,2643.6,2643.1,0.8272]
[1729283573340,1.14085577,2643.6,2643.1,0.8272]
[1729283575748,0.78643859,2643.5,2643.1,0.8272]
[1729283576148,1.13810763,2643.4,2642.5,0.8252]
[1729283576370,1.13810763,2643.3,2642.5,0.8252]
[1729283576681,0.78643859,2643.3,2642.5,0.8252]
[1729283577047,0.78643859,2643.2,2642.5,0.8252]
[1729283577686,0.78643859,2643.3,2642.5,0.8252]
[1729283578570,0.78643859,2643.2,2642.5,0.8252]
[1729283578776,0.78643859,2643.3,2642.5,0.8252]
[1729283579681,0.78643859,2643.2,2642.5,0.8252]
[1729283579844,0.78643859,2643.3,2642.5,0.8252]
[1729283580661,0.78643859,2643.2,2642.5,0.8252]
[1729283580881,0.78643859,2643.3,2642.5,0.8252]
[1729283584088,1.14085577,2643.3,2642.5,0.8252]
[1729283584295,0.3519084,2643.2,2642.5,0.8252]
[1729283584469,1.14085577,2643.3,2642.5,0.8252]
[1729283584662,0.35194206,2643.2,2642.5,0.8252]
[1729283584866,0.35194206,2643.1,2642.5,0.8252]
[1729283585180,1.14085577,2643.3,2642.5,0.8252]
[1729283585357,0.5840131,2643.2,2642.5,0.8252]
[1729283585551,0.35191744,2643.1,2642.5,0.8252]
[1729283585761,0.23209566,2643.2,2642.5,0.8252]
[1729283585960,0.35191316,2643.1,2642.5,0.8252]
[1729283586200,0.9149164,2643.0,2642.5,0.8252]
[1729283586371,1.17117843,2642.9,2642.5,0.8252]
[1729283586576,0.35191316,2642.8,2642.5,0.8252]
[1729283586893,0.35191316,2642.7,2642.5,0.8252]
[1729283587103,0.35191316,2642.6,2642.5,0.8252]
[1729283587299,1.87979952,2643.2,2642.3,0.7763]
[1729283587598,0.91444314,2643.1,2642.3,0.7763]
[1729283587789,0.91444314,2643.0,2642.3,0.7763]
[1729283587986,0.78643859,2642.6,2642.3,0.7763]
[1729283588316,1.18010087,2642.8,2642.3,0.7763]
[1729283588317,0.78643859,2642.7,2642.3,0.7763]
[1729283589769,0.78643859,2642.8,2642.3,0.7763]
[1729283590474,0.78643859,2643.0,2642.2,0.7763]
[1729283590675,0.78643859,2643.2,2642.7,0.7763]
[1729283591971,0.78643859,2643.1,2642.7,0.7763]
[1729283592172,0.78643859,2643.2,2642.7,0.7763]
[1729283592802,1.57763237,2643.4,2642.8,1.04660343]
[1729283592803,0.78643859,2643.4,2642.8,1.04660343]
[1729283593105,0.78643859,2643.9,2643.1,0.8013]
[1729283593434,0.78643859,2643.7,2643.1,0.8013]
[1729283593713,0.35116506,2643.6,2643.1,0.8013]
[1729283593897,0.58542282,2644.2,2643.1,0.8013]
[1729283594207,0.91295036,2644.1,2643.1,0.8013]
[1729283594408,0.91295036,2644.0,2643.1,0.8013]
[1729283594607,0.78649316,2643.6,2643.1,0.8013]
[1729283596976,0.78649316,2643.7,2643.1,0.8013]
[1729283597507,0.78649316,2643.8,2643.1,0.8013]
[1729283598917,0.78649316,2643.7,2643.1,0.8013]
[1729283599595,0.78649316,2643.8,2643.1,0.8013]
[1729283599792,0.78649316,2643.7,2643.1,0.8013]
[1729283599990,0.78649316,2643.8,2643.1,0.8013]
[1729283600714,0.78649316,2643.9,2643.1,0.8013]
[1729283600877,0.78649316,2643.8,2643.1,0.8013]
[1729283603481,0.78649316,2643.9,2643.1,0.8013]
[1729283603690,1.14041508,2643.9,2643.1,0.8013]
[1729283605003,0.78649316,2643.8,2643.1,0.8013]
[1729283612183,1.14041508,2643.9,2643.1,0.8013]
[1729283612336,0.78649316,2643.8,2643.1,0.8013]
[1729283622847,0.78649316,2643.7,2643.1,0.8013]
[1729283623048,1.01850864,2643.7,2643.1,0.8013]
[1729283623762,0.78649316,2643.6,2643.1,0.8013]
[1729283624468,0.78649316,2643.5,2643.1,0.8013]
[1729283624818,1.01850864,2643.7,2643.1,0.8013]
[1729283627650,0.78649316,2643.6,2643.1,0.8013]
[1729283627956,1.006318,2643.6,2643.1,0.8013]
[1729283629677,0.78649316,2643.5,2643.1,0.8013]
[1729283629961,1.006318,2643.6,2643.1,0.8013]
[1729283631033,0.78649316,2643.5,2643.1,0.8013]
[1729283633140,0.78649316,2643.4,2643.1,0.8013]
[1729283633490,0.19662329,2643.3,2643.1,0.8013]
[1729283634279,0.98311645,2643.3,2643.1,0.8013]
[1729283636135,1.13828713,2643.2,2643.1,0.8013]
[1729283636667,0.78649316,2643.3,2643.1,0.8013]
[1729283637381,1.13834962,2643.2,2643.1,0.8013]
[1729283640669,0.78649316,2643.2,2643.1,0.8013]
[1729283640978,1.13842272,2643.2,2643.1,0.8013]
[1729283641180,1.13842047,2643.2,2643.1,0.8013]
[1729283643807,0.78649316,2643.2,2643.1,0.8013]
[1729283644081,1.13835837,2643.2,2643.1,0.8013]
[1729283648188,1.13839745,2643.2,2643.1,0.8013]
[1729283648493,0.78649316,2643.2,2643.1,0.8013]
[1729283648659,0.7849368,2643.3,2643.1,0.8013]
[1729283660020,0.7849368,2643.5,2643.1,0.8013]
[1729283663603,0.7849368,2643.6,2643.1,0.8013]
[1729283667718,1.17973975,2643.7,2643.1,0.8013]
[1729283667719,1.13699811,2643.5,2643.1,0.8013]
[1729283667905,0.7849368,2643.6,2643.1,0.8013]
[1729283676745,0.7849368,2643.7,2643.1,0.8013]
[1729283682142,0.7849368,2643.7,2642.5,3.45060451]
[1729283682143,0.7849368,2643.9,2643.4,0.55]
[1729283682342,0.7849368,2644.0,2643.3,0.7599]
[1729283682689,0.7849368,2644.1,2643.5,0.7599]
[1729283684283,0.7849368,2644.2,2643.5,0.7599]
[1729283687854,0.7849368,2644.3,2643.6,0.55]
[1729283688159,0.7849368,2644.3,2643.7,0.7945]
[1729283691294,0.7849368,2644.4,2643.7,0.7945]
[1729283695968,0.7849368,2644.5,2643.7,0.7945]
[1729283703202,1.13870309,2644.5,2643.7,0.7945]
[1729283703423,1.1365262,2644.4,2643.7,0.7945]
[1729283703634,0.7849368,2644.3,2643.7,0.7945]
[1729283703820,0.7849368,2644.4,2643.7,0.7945]
[1729283704241,0.7849368,2644.3,2643.7,0.7945]
[1729283704736,0.7849368,2644.4,2643.7,0.7945]
[1729283705302,0.7849368,2644.3,2643.7,0.7945]
[1729283705637,0.7849368,2644.4,2643.7,0.7945]
[1729283706177,0.7849368,2644.3,2643.7,0.7945]
[1729283708748,0.7849368,2644.4,2643.7,0.7945]
[1729283708926,0.7849368,2644.3,2643.7,0.7945]
[1729283709446,0.7849368,2644.4,2643.7,0.7945]
[1729283713413,0.7849368,2644.5,2643.7,0.7945]
[1729283713749,0.7849368,2644.4,2643.7,0.7945]
[1729283715250,0.7849368,2644.5,2643.7,0.7945]
[1729283715748,0.7849368,2644.5,2643.9,0.8094]
[1729283716654,0.7849368,2644.6,2643.9,0.8094]
[1729283717535,0.7849368,2644.5,2643.9,0.8094]
[1729283723348,0.7849368,2644.4,2643.9,0.8094]
[1729283727243,1.13715896,2644.3,2643.9,0.8094]
[1729283727462,0.7849368,2644.3,2643.9,0.8094]
[1729283731894,0.10224415,2644.2,2643.9,0.8094]
[1729283732399,0.10221258,2644.1,2643.9,0.8094]
[1729283732627,0.7849368,2644.4,2643.9,0.8094]
[1729283732828,0.10231821,2644.3,2643.9,0.8094]
[1729283732997,0.88725501,2644.3,2643.9,0.8094]
[1729283733390,0.88725501,2644.3,2644.0,0.55]
[1729283733391,0.10231821,2644.3,2644.0,0.55]
[1729283733614,0.10231821,2644.3,2643.8,0.55]
[1729283733933,0.7849368,2644.6,2644.1,0.8155]
[1729283734129,0.09882738,2644.2,2644.1,0.8155]
[1729283734427,0.7849368,2644.6,2644.2,0.8155]
[1729283735297,0.7849368,2644.7,2644.2,0.8155]
[1729283736391,0.7849368,2644.6,2644.2,0.8155]
[1729283737401,0.7849368,2644.7,2644.2,0.8155]
[1729283737715,0.7849368,2644.6,2644.2,0.8155]
[1729283741493,0.09898581,2644.5,2644.2,0.8155]
[1729283743024,0.098933,2644.4,2644.2,0.8155]
[1729283743750,0.09888019,2644.3,2644.2,0.8155]
[1729283744105,0.7849368,2644.6,2644.2,0.8155]
[1729283744291,0.09888019,2644.3,2644.2,0.8155]
[1729283744490,0.7849368,2644.6,2644.2,0.8155]
[1729283744735,0.09888019,2644.3,2644.2,0.8155]
[1729283745031,0.09570767,2644.3,2644.2,0.8155]
[1729283745193,0.7849368,2644.6,2644.2,0.8155]
[1729283745396,0.09581328,2644.5,2644.2,0.8155]
[1729283747027,0.7849368,2644.7,2644.2,0.8155]
[1729283747231,0.09586608,2644.6,2644.2,0.8155]
[1729283747850,0.88080288,2644.6,2644.2,0.8155]
[1729283750241,0.09586608,2644.6,2644.2,0.8155]
[1729283750440,0.88080288,2644.6,2644.2,0.8155]
[1729283751244,0.09586608,2644.6,2644.2,0.8155]
[1729283751434,0.88080288,2644.6,2644.2,0.8155]
[1729283752739,0.09586608,2644.6,2644.2,0.8155]
[1729283753145,0.88080288,2644.6,2644.2,0.8155]
[1729283753675,0.09586608,2644.6,2644.2,0.8155]
[1729283754342,0.88080288,2644.6,2644.2,0.8155]
[1729283754762,0.09586608,2644.6,2644.2,0.8155]
[1729283755271,0.88080288,2644.6,2644.2,0.8155]
[1729283756376,0.09586608,2644.6,2644.2,0.8155]
[1729283756549,0.88080288,2644.6,2644.2,0.8155]
[1729283756742,0.09586608,2644.6,2644.2,0.8155]
[1729283757142,0.88080288,2644.6,2644.2,0.8155]
[1729283766316,0.88080288,2644.6,2644.4,0.7664]
[1729283766688,0.09586608,2644.6,2644.4,0.7664]
[1729283767991,0.88080288,2644.6,2644.4,0.7664]
[1729283768511,0.09586608,2644.6,2644.4,0.7664]
[1729283768879,0.88080288,2644.6,2644.4,0.7664]
[1729283773779,0.09586608,2644.6,2644.4,0.7664]
[1729283774193,0.88080288,2644.6,2644.4,0.7664]
[1729283778599,0.7849368,2644.5,2644.4,0.7664]
[1729283778801,0.88083016,2644.5,2644.4,1.3164]
[1729283779644,0.88083016,2644.5,2643.8,0.7546]
[1729283779809,0.88083016,2644.5,2644.1,1.3046]
[1729283779995,0.88083016,2644.5,2644.1,0.7546]
[1729283780509,0.88083016,2644.5,2644.2,0.55]
[1729283781806,0.88083016,2644.5,2644.1,0.7546]
[1729283781807,0.88083016,2644.5,2644.1,0.807]
[1729283782007,0.09589336,2644.5,2644.2,0.55]
[1729283782245,0.09589336,2644.5,2644.4,0.807]
[1729283782421,0.7849368,2644.8,2644.5,0.7582]
[1729283782620,1.17973975,2644.9,2644.6,0.7582]
[1729283782621,0.09600164,2644.7,2644.6,0.7582]
[1729283782940,0.7849368,2644.9,2644.6,1.3082]
[1729283783105,0.09600164,2644.7,2644.6,1.3082]
[1729283783312,0.7849368,2644.9,2644.6,1.3082]
[1729283783834,0.09605443,2644.8,2644.6,1.3082]
[1729283785421,0.7849368,2645.0,2644.6,1.3082]
[1729283785628,0.09309585,2644.9,2644.6,1.3082]
[1729283788935,0.7849368,2645.1,2644.6,1.3082]
[1729283789458,0.09314863,2645.0,2644.6,1.3082]
[1729283795623,0.0931173,2644.9,2644.6,1.3082]
[1729283795848,0.7849368,2645.1,2644.6,1.3082]
[1729283796024,0.09306451,2644.8,2644.6,1.3082]
[1729283796227,0.7849368,2645.2,2644.6,1.3082]
[1729283796523,0.09322286,2645.1,2644.6,1.3082]
[1729283801340,0.09322286,2645.1,2644.9,0.55]
[1729283801872,0.09008039,2645.0,2644.9,0.55]
[1729283802024,1.17973975,2645.5,2644.9,0.55]
[1729283802025,0.7849368,2645.4,2644.9,0.55]
[1729283802227,0.87517552,2645.3,2644.9,0.55]
[1729283803467,0.09023872,2645.3,2644.9,0.55]
[1729283804259,0.87517552,2645.3,2644.9,0.55]
[1729283804672,0.87517552,2645.3,2643.9,7.66546]
[1729283804971,0.7849368,2645.1,2644.4,0.55]
[1729283805331,0.87505489,2645.0,2644.4,0.55]
[1729283805531,0.09011809,2645.0,2644.4,0.55]
[1729283806377,0.87505489,2645.0,2644.4,0.55]
[1729283806672,0.09011809,2645.0,2644.4,0.55]
[1729283807167,0.09011809,2645.0,2644.6,0.55]
[1729283808858,1.64770386,2645.8,2644.6,0.55]
[1729283809063,0.09001413,2644.9,2644.6,0.55]
[1729283809364,0.91177039,2645.7,2644.6,0.55]
[1729283809569,0.7879745,2645.2,2644.7,0.8165]
[1729283809947,0.0901197,2645.1,2644.8,0.55]
[1729283812700,0.0901197,2645.1,2644.9,0.7859]
[1729283812879,1.18196175,2645.4,2644.9,0.7859]
[1729283812880,0.7879745,2645.4,2644.9,0.7859]
[1729283813173,0.0871421,2645.0,2644.9,1.3359]
[1729283813378,0.7879745,2645.4,2644.9,0.7859]
[1729283813581,0.0871421,2645.0,2644.9,1.3359]
[1729283813750,0.7879745,2645.4,2645.1,0.7859]
[1729283813953,0.7879745,2645.6,2645.4,3.0]
[1729283814150,0.7879745,2645.5,2645.2,0.55]
[1729283814338,0.7879745,2645.6,2645.2,0.55]
[1729283815258,1.575949,2645.9,2645.2,0.55]
[1729283815259,0.7879745,2645.8,2645.4,0.55]
[1729283815877,1.18196175,2645.9,2645.4,0.55]
[1729283815878,0.7879745,2645.9,2645.4,0.55]
[1729283816239,1.14256303,2645.9,2645.4,0.55]
[1729283816482,0.08765307,2645.8,2644.7,3.7506]
[1729283816641,0.7879745,2645.6,2644.7,3.7506]
[1729283816836,0.87264457,2645.5,2644.8,0.7954]
[1729283817040,0.08467007,2645.5,2644.8,1.4983052]
[1729283817267,0.7879745,2645.9,2645.0,0.8042]
[1729283817573,0.08172234,2645.4,2645.0,0.8042]
[1729283817878,0.08166957,2645.3,2645.1,0.55]
[1729283818184,0.7879745,2645.8,2645.1,0.55]
[1729283818352,0.08161679,2645.2,2645.1,0.55]
[1729283818558,0.7879745,2645.8,2645.1,1.03040305]
[1729283818895,0.7879745,2645.8,2644.8,1.4983052]
[1729283818896,0.7879745,2645.6,2644.8,0.802]
[1729283819094,0.7879745,2645.4,2644.8,0.802]
[1729283819456,0.08166957,2645.3,2644.8,0.802]
[1729283820068,0.08166957,2645.3,2644.9,0.55]
[1729283821359,0.28683015,2645.3,2644.6,8.0796]
[1729283821595,0.7879745,2645.2,2644.4,0.7896]
[1729283821792,0.7879745,2645.1,2644.2,0.7896]
[1729283822092,0.7879745,2644.9,2644.2,0.7896]
[1729283822471,0.08133806,2644.8,2644.2,0.7896]
[1729283823058,0.86931256,2644.8,2644.2,3.7896]
[1729283825397,0.86931256,2644.8,2644.3,1.28265646]
[1729283827462,0.86931256,2644.8,2644.0,0.7996]
[1729283827771,0.22482679,2644.8,2644.0,0.7996]
[1729283827971,1.85286444,2645.3,2644.0,0.7996]
[1729283828171,0.35155169,2645.2,2644.0,0.7996]
[1729283828397,0.35155169,2645.1,2644.0,0.7996]
[1729283828579,0.35155169,2645.0,2644.0,0.7996]
[1729283828786,0.08126787,2645.0,2644.1,0.55]
[1729283829201,1.85286444,2645.3,2644.1,0.55]
[1729283829358,0.08121509,2644.9,2644.1,0.55]
[1729283829567,0.22449999,2645.2,2644.1,0.55]
[1729283829794,0.0811623,2644.8,2644.1,0.55]
[1729283830103,0.0811095,2644.7,2644.1,0.55]
[1729283830395,0.22449999,2645.2,2644.1,0.55]
[1729283830598,0.35141497,2645.1,2644.1,0.55]
[1729283830798,0.30368253,2645.1,2644.1,0.55]
[1729283831859,0.08132065,2645.1,2644.1,0.55]
[1729283832063,1.64770386,2645.3,2644.1,0.55]
[1729283832290,0.08126787,2645.0,2644.1,0.55]
[1729283832561,1.64770386,2645.2,2644.1,0.55]
[1729283832762,0.78742734,2644.7,2644.1,0.55]
[1729283833163,0.08105671,2644.6,2644.1,0.55]
[1729283833365,0.08105671,2644.6,2643.8,0.55]
[1729283834413,0.3326755,2644.6,2643.8,0.55]
[1729283834618,0.08105671,2644.6,2643.7,7.29]
[1729283835689,0.08105671,2644.6,2643.8,3.784]
[1729283836094,0.08105671,2644.6,2643.9,0.55]